Workbook

Sheet 1
A1: Школа | B1: МБОУ "Лицей № 5" Вахитовского района г. Казани | E1: Отд./корп | I1: День | J1: 2023-03-01
A3: Прием пищи | B3: Раздел | C3: № рец. | E3: Выход, г | F3: Цена | G3: Калорийность | H3: Белки | I3: Жиры | J3: Углеводы
A4: Завтрак | B4: закуска | C4: ='[1]13-18 фев.'!C25 -> №52/2015 г | D4: ='[1]13-18 фев.'!D25 -> Свекла отварная (долькам) с маслом | E4: ='[1]13-18 фев.'!E25 -> 60 | F4: ='[1]13-18 фев.'!F25 -> 0.00 | G4: ='[1]13-18 фев.'!G25 -> 56 | H4: ='[1]13-18 фев.'!H25 -> 0.85 | I4: ='[1]13-18 фев.'!I25 -> 3.65 | J4: ='[1]13-18 фев.'!J25 -> 5.02
B5: сладкое
B6: 2 блюдо | C6: ='[1]13-18 фев.'!C20 -> ТТК 2021 г | D6: ='[1]13-18 фев.'!D20 -> Котлеты "Школьные" | E6: ='[1]13-18 фев.'!E20 -> 90 | F6: ='[1]13-18 фев.'!F20 -> 0.00 | G6: ='[1]13-18 фев.'!G20 -> 113 | H6: ='[1]13-18 фев.'!H20 -> 11.00 | I6: ='[1]13-18 фев.'!I20 -> 6.09 | J6: ='[1]13-18 фев.'!J20 -> 3.60
B7: гарнир | C7: ='[1]13-18 фев.'!C21 -> № 304/2015 г | D7: ='[1]13-18 фев.'!D21 -> Рис отварной с маслом сливочным | E7: ='[1]13-18 фев.'!E21 -> 155 | F7: ='[1]13-18 фев.'!F21 -> 0.00 | G7: ='[1]13-18 фев.'!G21 -> 257 | H7: ='[1]13-18 фев.'!H21 -> 3.87 | I7: ='[1]13-18 фев.'!I21 -> 9.05 | J7: ='[1]13-18 фев.'!J21 -> 40.05
B8: сладкое
B9: хлеб бел. | D9: ='[2]13-18 фев.'!D15 -> Хлеб пшеничный | E9: ='[2]13-18 фев.'!E15 -> 15 | F9: ='[2]13-18 фев.'!F15 -> 0.00 | G9: ='[2]13-18 фев.'!G15 -> 35 | H9: ='[2]13-18 фев.'!H15 -> 1.14 | I9: ='[2]13-18 фев.'!I15 -> 0.12 | J9: ='[2]13-18 фев.'!J15 -> 7.38
B10: хлеб черн. | D10: ='[1]13-18 фев.'!D23 -> Хлеб ржано-пшеничный | E10: ='[1]13-18 фев.'!E23 -> 20 | F10: ='[1]13-18 фев.'!F23 -> 0.00 | G10: ='[1]13-18 фев.'!G23 -> 44 | H10: ='[1]13-18 фев.'!H23 -> 1.00 | I10: ='[1]13-18 фев.'!I23 -> 0.20 | J10: ='[1]13-18 фев.'!J23 -> 9.00
B11: гор.напиток | C11: ='[1]13-18 фев.'!C22 -> № 699/2004 | D11: ='[1]13-18 фев.'!D22 -> Компот из замороженной вишни | E11: ='[1]13-18 фев.'!E22 -> 200 | F11: ='[1]13-18 фев.'!F22 -> 0.00 | G11: ='[1]13-18 фев.'!G22 -> 48 | H11: ='[1]13-18 фев.'!H22 -> 0.12 | I11: ='[1]13-18 фев.'!I22 -> 0.03 | J11: ='[1]13-18 фев.'!J22 -> 11.57
D12: ИТОГО | E12: ='[1]13-18 фев.'!E27 -> 540 | F12: ='[1]13-18 фев.'!F27 -> 62.10 | G12: ='[1]13-18 фев.'!G27 -> 553 | H12: ='[1]13-18 фев.'!H27 -> 17.98 | I12: ='[1]13-18 фев.'!I27 -> 19.14 | J12: ='[1]13-18 фев.'!J27 -> 76.62
